bitfinex-derivatives/quotes_SOLF0:USTF0_20241216
["timestamp","ask_amount","ask_price","bid_price","bid_amount"]
[1734374452995,4.4796,219.26,219.13,2.9]
[1734374452996,2.2804,219.18,219.13,2.9]
[1734374453496,4.4796,219.26,219.13,2.9]
[1734374453704,2.2802,219.2,219.14,2.2807]
[1734374453892,2.2802,219.2,219.13,2.9]
[1734374454096,4.4796,219.26,219.15,13.26508636]
[1734374454898,4.4796,219.26,219.17,2.2805]
[1734374454899,2.28,219.22,219.17,2.2805]
[1734374455407,1.5796,219.26,219.17,2.2805]
[1734374455896,2.2801,219.21,219.17,2.2805]
[1734374456103,2.2801,219.21,219.16,2.2806]
[1734374456304,1.5796,219.26,219.16,2.2806]
[1734374456504,2.2803,219.19,219.13,2.9]
[1734374456703,13.26508636,219.25,219.13,2.9]
[1734374457006,13.26508636,219.25,219.08,1.5933]
[1734374457007,2.2808,219.14,219.11,2.9]
[1734374457601,2.2808,219.14,219.09,2.9]
[1734374457803,2.2809,219.13,219.09,2.9]
[1734374458200,2.2809,219.13,219.08,2.2814]
[1734374458407,2.2809,219.13,219.08,5.1814]
[1734374458802,1.7072,219.18,219.12,13.26508636]
[1734374459005,13.26508636,219.25,219.15,13.26508636]
[1734374459006,1.7072,219.25,219.15,13.26508636]
[1734374459205,1.7072,219.25,219.15,16.16508636]
[1734374459398,2.2799,219.23,219.17,2.2805]
[1734374459600,1.7072,219.25,219.17,2.2805]
[1734374459800,1.7072,219.25,219.15,16.16508636]
[1734374460006,2.2802,219.21,219.15,16.16508636]
[1734374461496,2.2802,219.21,219.16,2.2806]
[1734374462105,2.28,219.22,219.16,2.2806]
[1734374462701,2.28,219.22,219.17,2.2805]
[1734374463010,1.7072,219.25,219.15,2.9]
[1734374463205,13.26508636,219.24,219.12,13.26508636]
[1734374463407,16.16508636,219.24,219.12,13.26508636]
[1734374463605,2.2806,219.17,219.12,13.26508636]
[1734374463809,2.2806,219.17,219.12,15.54618636]
[1734374464304,16.16508636,219.24,219.12,15.54618636]
[1734374464609,2.9,219.24,219.12,13.26508636]
[1734374464803,16.16508636,219.24,219.12,13.26508636]
[1734374465004,16.16508636,219.24,219.11,4.4708]
[1734374465005,1.7072,219.25,219.15,13.26508636]
[1734374465401,2.28,219.23,219.15,13.26508636]
[1734374465603,1.7072,219.25,219.15,13.26508636]
[1734374465802,1.7072,219.25,219.12,13.26508636]
[1734374466006,1.7072,219.25,219.13,2.9]
[1734374466402,1.7072,219.25,219.13,5.181]
[1734374466804,1.7072,219.25,219.13,2.9]
[1734374468607,1.7072,219.25,219.16,2.2807]
[1734374468608,2.2803,219.21,219.16,2.2807]
[1734374469599,2.2803,219.21,219.15,2.2809]
[1734374470002,2.2803,219.21,219.13,2.9]
[1734374470609,1.7072,219.25,219.13,2.9]
[1734374470610,2.2804,219.2,219.13,2.9]
[1734374470908,2.2804,219.2,219.07,5.53890675]
[1734374470909,13.26508636,219.24,219.1,2.9]
[1734374471110,2.9,219.23,219.1,2.9]
[1734374471503,267.56148357,219.24,219.12,13.26508636]
[1734374471913,254.29639721,219.24,219.12,13.26508636]
[1734374472115,254.29639721,219.3,219.19,13.26508636]
[1734374472313,255.87059721,219.3,219.19,16.16508636]
[1734374472511,2.2798,219.26,219.2,2.2804]
[1734374473706,2.2798,219.26,219.21,2.2802]
[1734374476021,2.2798,219.26,219.21,2.2803]
[1734374476714,14.83928636,219.3,219.19,2.9]
[1734374477518,2.2803,219.22,219.17,2.2806]
[1734374477822,13.26508636,219.27,219.17,2.2806]
[1734374478121,2.2803,219.21,219.17,2.2806]
[1734374478721,2.2803,219.21,219.18,5.45151319]
[1734374478925,1.6857,219.26,219.18,5.45151319]
[1734374478926,2.2802,219.22,219.18,5.45151319]
[1734374479321,1.6857,219.26,219.18,5.45151319]
[1734374479621,2.2802,219.23,219.18,5.45151319]
[1734374480023,2.2802,219.23,219.18,16.17016517]
[1734374480318,2.2802,219.23,219.15,2.9]
[1734374480319,2.2803,219.21,219.15,2.9]
[1734374480519,2.2803,219.21,219.17,8.43805198]
[1734374480722,1.6857,219.26,219.17,8.43805198]
[1734374481024,2.28,219.25,219.19,8.43805198]
[1734374481224,1.6857,219.26,219.2,4.91806004]
[1734374481423,1.6857,219.26,219.21,10.71825198]
[1734374481726,2.2798,219.26,219.21,10.71825198]
[1734374481921,8.43805198,219.27,219.21,10.71825198]
[1734374482920,1.5742,219.3,219.23,8.43805198]
[1734374483126,10.01225198,219.3,219.23,8.43805198]
[1734374483928,2.2796,219.28,219.24,2.2799]
[1734374484927,2.2794,219.3,219.25,2.2799]
[1734374485129,1.6274,219.33,219.25,2.2799]
[1734374486119,1.6274,219.33,219.27,2.2796]
[1734374486321,13.17801914,219.34,219.27,2.2796]
[1734374487027,2.2794,219.31,219.27,2.2796]
[1734374487228,13.17801914,219.34,219.22,2.9]
[1734374487425,13.17801914,219.34,219.23,4.91433377]
[1734374487622,13.17801914,219.34,219.22,2.9]
[1734374488025,13.17801914,219.34,219.25,2.2799]
[1734374488228,13.17801914,219.34,219.22,2.9]
[1734374488529,13.17801914,219.34,219.23,4.91329941]
[1734374488724,2.2793,219.31,219.26,2.2797]
[1734374489428,13.17801914,219.34,219.22,2.9]
[1734374489629,2.2794,219.3,219.24,2.2799]
[1734374489925,2.2794,219.3,219.23,4.91178511]
[1734374489926,16.07801914,219.37,219.23,13.17801914]
[1734374490127,10.45288172,219.36,219.25,2.2798]
[1734374490526,13.17801914,219.34,219.25,2.2798]
[1734374490927,13.17801914,219.34,219.23,2.28]
[1734374491527,13.17801914,219.34,219.22,5.1802]
[1734374492525,13.17801914,219.34,219.2,13.17801914]
[1734374492726,13.17801914,219.31,219.19,2.9]
[1734374492926,13.17801914,219.31,219.2,4.91030926]
[1734374493133,13.17801914,219.31,219.19,2.9]
[1734374493431,3.3681,219.38,219.27,13.17801914]
[1734374493633,571.15186362,219.43,219.28,2.9]
[1734374493829,2.2786,219.38,219.32,2.2791]
[1734374495334,330.03348555,219.43,219.3,13.17801914]
[1734374495534,330.03348555,219.43,219.28,4.5642]
[1734374495535,13.17801914,219.43,219.28,4.5642]
[1734374495732,13.17801914,219.43,219.3,13.17801914]
[1734374495931,2.2783,219.4,219.3,13.17801914]
[1734374496339,2.2783,219.4,219.31,4.90089453]
[1734374496536,2.2783,219.4,219.3,13.17801914]
[1734374496729,2.2783,219.4,219.31,4.90219004]
[1734374496941,2.2783,219.4,219.33,2.279]
[1734374497235,4.7293,219.46,219.34,2.9]
[1734374497437,2.2778,219.45,219.39,2.2784]
[1734374498340,1.5826,219.46,219.36,13.17801914]
[1734374498540,2.278,219.44,219.34,2.9]
[1734374498731,1.5826,219.46,219.34,2.9]
[1734374499539,2.278,219.44,219.34,2.9]
[1734374500539,2.278,219.44,219.37,2.2786]
[1734374500838,1.5826,219.46,219.37,2.2786]
[1734374501040,2.278,219.44,219.35,5.34168955]
[1734374502546,2.278,219.44,219.37,2.2786]
[1734374503138,2.278,219.43,219.37,2.2786]
[1734374503342,1.5826,219.46,219.37,2.2786]
[1734374504440,2.2779,219.44,219.39,8.42268569]
[1734374507544,2.2778,219.45,219.39,10.70108569]
[1734374508346,2.2778,219.45,219.4,2.2783]
[1734374508949,2.2778,219.45,219.41,8.42268569]
[1734374509350,1.5826,219.46,219.42,2.2781]
[1734374509544,1.5826,219.46,219.41,11.32268569]
[1734374510045,12.28298569,219.46,219.41,5.1781]
[1734374511650,12.28298569,219.46,219.41,2.9]
[1734374512243,10.00528569,219.46,219.39,2.2783]
[1734374512443,8.42268569,219.42,219.35,5.34168955]
[1734374512642,8.42268569,219.42,219.36,2.9]
[1734374512941,1.5826,219.46,219.34,2.9]
[1734374512942,8.42268569,219.4,219.34,2.9]
[1734374513142,8.42268569,219.4,219.33,8.42268569]
[1734374514347,2.2785,219.38,219.33,8.42268569]
[1734374514547,8.42268569,219.42,219.35,8.42268569]
[1734374515051,2.2784,219.4,219.35,8.42268569]
[1734374515349,2.2784,219.4,219.32,5.49662067]
[1734374515350,8.42268569,219.4,219.33,8.42268569]
[1734374515950,2.2786,219.38,219.33,8.42268569]
[1734374516350,2.2786,219.38,219.35,8.42268569]
[1734374516744,2.2786,219.38,219.33,10.70168569]
[1734374517751,8.42268569,219.4,219.32,5.49662067]
[1734374518152,8.42268569,219.4,219.32,13.91930636]
[1734374518356,2.2787,219.37,219.32,13.91930636]
[1734374518951,2.2787,219.37,219.34,8.42268569]
[1734374519149,8.42268569,219.4,219.34,8.42268569]
[1734374519348,2.2784,219.39,219.36,8.42268569]
[1734374519550,8.42268569,219.43,219.36,8.42268569]
[1734374519948,2.2784,219.4,219.36,8.42268569]
[1734374520556,2.2782,219.41,219.36,8.42268569]
[1734374521247,2.2782,219.41,219.32,5.49662067]
[1734374521248,2.2784,219.4,219.32,5.49662067]
[1734374521446,1.5826,219.46,219.36,8.42268569]
[1734374521645,8.42268569,219.44,219.36,8.42268569]
[1734374521850,2.2783,219.4,219.36,8.42268569]
[1734374522053,2.2783,219.4,219.32,5.49662067]
[1734374522251,2.2783,219.4,219.36,8.42268569]
[1734374522453,2.2785,219.39,219.36,8.42268569]
[1734374522953,2.2785,219.39,219.34,2.2789]
[1734374523154,2.2785,219.39,219.36,8.42268569]
[1734374523451,2.2783,219.41,219.38,8.42268569]
[1734374524350,8.42268569,219.44,219.38,10.70118569]
[1734374524955,8.42268569,219.44,219.38,2.2785]
[1734374525858,2.2782,219.42,219.38,2.2785]
[1734374526159,8.42268569,219.44,219.37,2.2786]
[1734374526652,2.2782,219.41,219.37,2.2786]
[1734374528057,2.2782,219.41,219.36,8.42268569]
[1734374528058,2.2784,219.4,219.36,10.70138569]
[1734374528260,2.2784,219.4,219.36,8.42268569]
[1734374529060,8.42268569,219.44,219.36,8.42268569]
[1734374529359,2.2782,219.41,219.36,8.42268569]
[1734374530259,2.2782,219.41,219.34,2.9]
[1734374530462,2.2782,219.41,219.38,8.42268569]
[1734374530956,8.42268569,219.44,219.36,2.2787]
[1734374531154,2.2783,219.4,219.37,8.42268569]
[1734374532060,2.2783,219.41,219.37,8.42268569]
[1734374532257,8.42268569,219.44,219.37,8.42268569]
[1734374532458,8.42268569,219.44,219.34,2.9]
[1734374532459,10.00528569,219.46,219.39,8.42268569]
[1734374532653,2.2781,219.42,219.38,2.2785]
[1734374533960,2.2781,219.42,219.37,8.42268569]
[1734374534161,2.2781,219.42,219.37,10.70128569]
[1734374534362,10.70078569,219.42,219.37,2.2786]
[1734374534859,2.2781,219.42,219.37,2.2786]
[1734374535253,2.2781,219.42,219.35,8.42268569]
[1734374536259,2.2781,219.42,219.37,8.42268569]
[1734374536664,2.278,219.43,219.37,8.42268569]
[1734374538462,8.42268569,219.44,219.37,8.42268569]
[1734374538672,2.2782,219.42,219.37,8.42268569]
[1734374538966,10.70088569,219.42,219.35,8.42268569]
[1734374539267,10.70098569,219.4,219.34,2.8]
[1734374539563,1.5826,219.46,219.35,8.42268569]
[1734374539770,2.2782,219.41,219.36,2.2787]
[1734374540069,8.42268569,219.45,219.37,8.42268569]
[1734374540257,2.2779,219.45,219.4,2.2783]
[1734374540462,1.5826,219.46,219.41,4.91862274]
[1734374540663,1.5826,219.46,219.42,4.91862274]
[1734374540860,1.5826,219.46,219.39,8.42268569]
[1734374541069,1.5826,219.46,219.4,8.25740342]
[1734374541268,1.5826,219.46,219.42,2.278]
[1734374541663,1.5826,219.46,219.43,4.91772897]
[1734374541968,1.5826,219.46,219.42,2.278]
[1734374542271,8.42268569,219.45,219.41,2.278]
[1734374542568,8.42268569,219.43,219.42,4.91694966]
[1734374543660,1.5826,219.46,219.38,8.42268569]
[1734374543860,1.7051,219.5,219.45,8.42268569]
[1734374544065,3.9822,219.5,219.45,10.70018569]
[1734374544391,56.32289382,219.52,219.45,10.70018569]
[1734374544669,2.2771,219.5,219.45,10.70018569]
[1734374545168,2.2772,219.49,219.45,10.70018569]
[1734374545363,56.32289382,219.52,219.46,2.2775]
[1734374545364,8.42268569,219.52,219.46,2.2775]
[1734374545866,1.5605,219.56,219.49,2.2772]
[1734374546071,8.42268569,219.54,219.5,4.91334988]
[1734374546269,8.42268569,219.54,219.49,2.2772]
[1734374546470,8.42268569,219.54,219.5,4.91023695]
[1734374546665,1.5605,219.56,219.51,4.91016409]
[1734374546872,2.2762,219.59,219.53,8.42268569]
[1734374547067,2.2762,219.59,219.54,4.91016409]
[1734374547264,8.42268569,219.6,219.55,4.91016409]
[1734374547462,8.42268569,219.6,219.53,8.42268569]
[1734374547769,8.42268569,219.6,219.49,2.8]
[1734374547770,2.2761,219.6,219.55,10.69918569]
[1734374548168,7.20233018,219.64,219.56,4.90299389]
[1734374548169,2.2761,219.59,219.56,4.90299389]
[1734374548365,2.2761,219.59,219.55,2.2765]
[1734374548366,2.2761,219.59,219.53,2.2767]
[1734374548665,2.2761,219.59,219.54,4.90253509]
[1734374548972,2.2761,219.59,219.55,4.90253509]
[1734374549173,2.276,219.6,219.54,2.2766]
[1734374549466,14.83713152,219.64,219.55,2.8]
[1734374550668,14.83713152,219.64,219.5,14.70683152]
[1734374550977,2.2768,219.53,219.48,5.0772]
[1734374551165,13.14203152,219.58,219.48,2.8]
[1734374551470,13.14203152,219.58,219.49,5.41081644]
[1734374551669,2.2765,219.56,219.49,7.68791644]
[1734374551872,13.14203152,219.58,219.49,7.68791644]
[1734374552372,2.2766,219.55,219.49,7.68791644]
[1734374552567,13.14203152,219.58,219.49,7.68791644]
[1734374553073,2.2766,219.55,219.49,7.68791644]
[1734374555664,13.14203152,219.62,219.49,5.41081644]
[1734374555864,1.6489,219.61,219.49,5.41081644]
[1734374556474,13.14203152,219.59,219.49,5.41081644]
[1734374556775,2.2767,219.54,219.49,5.41081644]
[1734374558567,2.2767,219.54,219.49,7.68801644]
[1734374562673,2.2767,219.54,219.5,2.277]
[1734374563170,1.6489,219.61,219.49,5.41081644]
[1734374563370,1.6489,219.61,219.51,2.2769]
[1734374564578,2.2765,219.56,219.51,2.2769]
[1734374567074,2.2765,219.56,219.49,5.41081644]
[1734374567075,1.6489,219.61,219.52,2.2768]
[1734374567576,2.2764,219.56,219.52,2.2768]
[1734374568079,2.2764,219.56,219.49,5.41081644]
[1734374568080,2.2766,219.55,219.49,5.41081644]
[1734374568378,2.2766,219.55,219.52,8.41276206]
[1734374569174,2.2766,219.55,219.49,5.41081644]
[1734374569379,2.2766,219.55,219.51,8.41276206]
[1734374569572,2.2766,219.55,219.5,2.2771]
[1734374569979,2.2766,219.55,219.51,8.41276206]
[1734374570876,8.41276206,219.56,219.49,5.41081644]
[1734374571076,1.6489,219.61,219.52,8.41276206]
[1734374571279,8.41276206,219.58,219.52,8.41276206]
[1734374572385,2.2765,219.56,219.52,8.41276206]
[1734374572680,8.41276206,219.58,219.52,8.41276206]
[1734374572876,1.6489,219.61,219.52,8.41276206]
[1734374573076,2.2759,219.61,219.56,10.68916206]
[1734374575075,2.2759,219.61,219.58,8.41276206]
[1734374575275,2.2759,219.61,219.56,10.68916206]
[1734374575880,8.41276206,219.62,219.56,2.2764]
[1734374576083,2.276,219.6,219.56,10.68916206]
[1734374577085,2.2759,219.61,219.56,10.68916206]
[1734374577678,8.41276206,219.62,219.56,2.2764]
[1734374577883,2.276,219.6,219.56,10.68916206]
[1734374578080,10.10786206,219.64,219.58,8.41276206]
[1734374578388,10.10786206,219.64,219.56,8.41276206]
[1734374578588,2.2759,219.62,219.56,8.41276206]
[1734374579091,2.2759,219.62,219.57,2.2763]
[1734374579689,10.68866206,219.62,219.57,2.2763]
[1734374580686,2.2759,219.61,219.56,10.68916206]
[1734374581687,8.41276206,219.62,219.56,8.41276206]
[1734374581989,2.2758,219.62,219.58,8.41276206]
[1734374583491,2.2758,219.62,219.58,10.68896206]
[1734374583891,2.2758,219.62,219.58,8.41276206]
[1734374585190,2.2759,219.61,219.55,5.0365]
[1734374585489,8.41276206,219.58,219.56,4.89132659]
[1734374585689,2.2758,219.62,219.57,8.41276206]
[1734374585892,1.6951,219.64,219.54,2.76]
[1734374585893,10.10786206,219.64,219.55,2.2764]
[1734374586091,10.10786206,219.64,219.55,10.68916206]
[1734374586092,8.41276206,219.62,219.55,10.68916206]
[1734374586794,8.41276206,219.62,219.54,5.0366]
[1734374586988,8.41276206,219.62,219.55,8.41276206]
[1734374587185,8.41276206,219.62,219.54,5.0366]
[1734374587388,8.41276206,219.62,219.55,8.41276206]
[1734374587591,8.41276206,219.62,219.54,5.0366]
[1734374587592,2.2762,219.59,219.54,5.0366]
[1734374587795,8.41276206,219.62,219.54,11.17276206]
[1734374587993,1.6951,219.64,219.52,2.76]
[1734374587994,8.41276206,219.58,219.52,2.76]
[1734374588393,8.41276206,219.58,219.53,4.90466108]
[1734374588595,2.2764,219.57,219.52,13.44956206]
[1734374588795,8.41276206,219.6,219.54,8.41276206]
[1734374589892,2.2762,219.58,219.54,8.41276206]
[1734374592897,8.41276206,219.59,219.53,2.2767]
[1734374593100,8.41276206,219.59,219.52,11.17276206]
[1734374593500,2.2764,219.56,219.52,11.17276206]
[1734374594415,2.2763,219.58,219.54,8.41276206]
[1734374594594,8.41276206,219.61,219.54,8.41276206]
[1734374595109,8.41276206,219.57,219.5,8.41276206]
[1734374595321,8.41276206,219.57,219.51,4.91011711]
[1734374595502,2.2767,219.53,219.49,7.94234644]
[1734374595806,2.2767,219.53,219.5,4.91040077]
[1734374595999,2.2767,219.53,219.49,7.94234644]
[1734374596504,2.2769,219.52,219.49,7.94234644]
[1734374596802,8.41276206,219.55,219.49,7.94234644]
[1734374597004,8.41276206,219.53,219.49,2.53153]
[1734374597606,2.2771,219.5,219.49,2.53153]
[1734374598209,8.41276206,219.51,219.43,2.7]
[1734374598210,2.2774,219.47,219.43,2.7]
[1734374598402,2.2774,219.47,219.44,4.90964653]
[1734374598601,2.2774,219.47,219.45,4.90964653]
[1734374598801,2.2774,219.47,219.44,44.0]
[1734374598802,2.2776,219.45,219.44,44.0]
[1734374599206,8.41276206,219.47,219.44,44.0]
[1734374599709,1.6907,219.52,219.44,44.0]
[1734374599710,2.2775,219.46,219.44,44.0]
[1734374601014,2.2776,219.45,219.44,44.0]
[1734374608122,2.2775,219.47,219.44,44.0]
[1734374608311,8.41276206,219.5,219.44,44.0]
[1734374609716,2.2773,219.48,219.44,46.2776]
[1734374610311,2.2772,219.49,219.45,2.2776]
[1734374611115,2.7,219.53,219.48,2.2773]
[1734374611116,8.41276206,219.53,219.48,2.2773]
[1734374612314,8.41276206,219.53,219.47,8.41276206]
[1734374612315,2.2769,219.52,219.47,10.69016206]
[1734374612720,8.41276206,219.53,219.47,10.69016206]
[1734374613718,0.33331,219.56,219.47,2.2774]
[1734374613918,8.41276206,219.53,219.47,2.2774]
[1734374614536,2.277,219.51,219.47,2.2774]
[1734374615119,8.41276206,219.51,219.44,44.0]
[1734374615319,8.41276206,219.47,219.44,44.0]
[1734374615522,8.41276206,219.45,219.44,44.0]
[1734374615828,10.69036206,219.45,219.44,44.0]
[1734374616025,2.2776,219.45,219.44,44.0]
[1734374616225,10.69036206,219.45,219.44,44.0]
[1734374616926,2.2776,219.45,219.44,44.0]
[1734374617125,2.7,219.52,219.44,44.0]
[1734374617522,8.41276206,219.5,219.44,44.0]
[1734374617825,2.2774,219.48,219.44,46.2776]
[1734374618025,2.2774,219.48,219.44,54.69036206]
[1734374618224,11.11276206,219.52,219.44,52.41276206]
[1734374618426,2.2771,219.5,219.46,2.2774]
[1734374618626,8.41276206,219.54,219.46,8.41276206]
[1734374619226,0.33331,219.56,219.48,8.41276206]
[1734374619423,0.33331,219.56,219.52,8.41276206]
[1734374619828,2.60991,219.56,219.52,8.41276206]
[1734374620431,0.33331,219.56,219.51,2.2769]
[1734374620626,2.2766,219.55,219.5,10.68986206]
[1734374621024,2.2766,219.55,219.48,2.7]
[1734374621025,8.74607206,219.56,219.48,2.7]
[1734374621331,0.33331,219.56,219.48,2.7]
[1734374621523,0.33331,219.56,219.49,8.41276206]
[1734374622122,0.33331,219.56,219.48,2.7]
[1734374622325,0.33331,219.56,219.53,8.41276206]
[1734374622529,0.33331,219.56,219.53,10.68946206]
[1734374623528,0.33331,219.56,219.53,10.68956206]
[1734374624124,3.4173,219.69,219.55,8.41276206]
[1734374624327,7.10878238,219.7,219.6,8.41276206]
[1734374624328,1.7016,219.7,219.6,8.41276206]
[1734374624528,8.41276206,219.67,219.6,8.41276206]
[1734374624928,2.2756,219.64,219.59,2.276]
[1734374625134,2.2756,219.64,219.58,11.11276206]
[1734374625330,8.41276206,219.64,219.58,2.7]
[1734374625526,2.2758,219.62,219.58,2.7]
[1734374625733,8.41276206,219.64,219.58,2.7]
[1734374626229,10.68866206,219.62,219.58,2.7]
[1734374627028,2.2759,219.62,219.58,2.7]
[1734374627832,2.2759,219.61,219.58,2.7]
[1734374628237,8.41276206,219.62,219.58,2.7]
[1734374629033,2.2761,219.6,219.58,2.7]
[1734374629739,2.276,219.61,219.58,2.7]
[1734374632030,2.2758,219.62,219.58,2.7]
[1734374632235,4.4816,219.7,219.59,8.41276206]
[1734374632539,8.41276206,219.66,219.59,8.41276206]
[1734374633047,10.68816206,219.67,219.62,2.2758]
[1734374634142,1.7016,219.7,219.58,2.7]
[1734374634143,3.315,219.73,219.63,8.41276206]
[1734374634338,8.41276206,219.7,219.63,8.41276206]
[1734374634936,8.41276206,219.68,219.63,8.41276206]
[1734374635146,10.68796206,219.68,219.61,8.41276206]
[1734374635340,8.41276206,219.68,219.59,1.6544]
[1734374635536,2.2756,219.64,219.6,8.41276206]
[1734374638346,2.2757,219.63,219.58,11.11276206]
[1734374638741,8.41276206,219.64,219.58,8.41276206]
[1734374639047,8.41276206,219.64,219.51,1.5928]
[1734374639048,8.41276206,219.64,219.57,8.41276206]
[1734374639838,8.41276206,219.62,219.55,11.19276206]
[1734374640343,2.2761,219.6,219.55,11.19276206]
[1734374640945,2.2762,219.59,219.55,8.41276206]
[1734374641541,2.2759,219.62,219.57,8.41276206]
[1734374645850,8.41276206,219.61,219.53,2.78]
[1734374646045,8.41276206,219.61,219.51,4.3728]
[1734374646249,8.41276206,219.59,219.51,12.78556206]
[1734374646440,2.2765,219.57,219.51,15.06256206]
[1734374646643,8.41276206,219.59,219.51,12.28256206]
[1734374648042,8.41276206,219.57,219.5,5.51598211]
[1734374648447,8.41276206,219.59,219.51,8.41276206]
[1734374648655,254.29639721,219.74,219.57,8.41276206]
[1734374648847,8.41276206,219.71,219.64,8.41276206]
[1734374649048,8.41276206,219.69,219.62,8.41276206]
[1734374649350,8.41276206,219.69,219.62,10.68856206]
[1734374649351,2.2753,219.68,219.62,10.68856206]
[1734374650246,2.2753,219.68,219.62,2.2758]
[1734374650551,15.91210699,219.72,219.61,2.276]
[1734374650751,15.91210699,219.72,219.6,2.78]
[1734374652249,2.78,219.72,219.6,2.78]
[1734374652950,13.13210699,219.67,219.53,2.78]
[1734374653150,13.13210699,219.67,219.54,8.20083617]
[1734374653354,45.2251032,219.74,219.6,13.13210699]
[1734374653355,4.8047,219.74,219.6,13.13210699]
[1734374653550,4.8047,219.74,219.61,2.78]
[1734374653945,2.2751,219.69,219.61,2.78]
[1734374654149,4.8047,219.74,219.61,2.78]
[1734374654356,2.2754,219.66,219.62,7.15942398]
[1734374654554,13.13210699,219.73,219.61,2.78]
[1734374654752,13.13210699,219.7,219.61,2.78]
[1734374655147,2.2753,219.68,219.61,5.056]
[1734374655351,13.13210699,219.7,219.61,5.056]
[1734374655554,13.13210699,219.7,219.61,2.78]
[1734374655750,13.13210699,219.64,219.53,2.78]
[1734374655955,13.13210699,219.64,219.54,4.88857225]
[1734374656155,13.13210699,219.64,219.53,2.78]
[1734374656357,2.276,219.61,219.55,2.2766]
[1734374657260,1.7033,219.65,219.56,4.88593282]
[1734374657458,1.7033,219.65,219.53,15.91210699]
[1734374657753,1.7033,219.65,219.54,4.8855307]
[1734374657958,1.7033,219.65,219.55,4.8855307]
[1734374658259,1.7033,219.65,219.53,15.91210699]
[1734374658457,2.2758,219.63,219.57,2.2763]
[1734374660357,2.2758,219.63,219.53,15.91210699]
[1734374660556,13.13210699,219.67,219.58,2.2763]
[1734374661060,13.13210699,219.67,219.53,15.91210699]
[1734374661261,13.13210699,219.7,219.59,13.13210699]
[1734374661652,1.6292,219.73,219.59,13.13210699]
[1734374661653,2.98,219.71,219.59,13.13210699]
[1734374661853,2.98,219.71,219.59,16.11210699]
[1734374662265,2.2755,219.66,219.59,16.11210699]
[1734374663160,14.76130699,219.73,219.59,16.11210699]
[1734374663465,2.2754,219.67,219.61,2.2759]
[1734374663761,17.74130699,219.73,219.61,2.2759]
[1734374664355,2.2751,219.7,219.61,2.2759]
[1734374664556,17.74130699,219.73,219.61,2.2759]
[1734374664755,17.74130699,219.73,219.62,2.2759]
[1734374665966,17.74130699,219.73,219.63,4.90088312]
[1734374666169,17.74130699,219.73,219.63,2.2758]
[1734374666371,17.74130699,219.73,219.64,4.90231532]
[1734374666574,2.2754,219.67,219.63,2.2758]
[1734374667274,2.2754,219.67,219.64,4.90403464]
[1734374667473,2.2754,219.67,219.63,2.2758]
[1734374667768,2.2754,219.67,219.64,4.90405657]
[1734374667966,2.2754,219.67,219.52,0.47035]
[1734374667967,13.13210699,219.7,219.56,13.13210699]
[1734374668165,13.13210699,219.7,219.57,11.21356419]
[1734374668166,2.2757,219.64,219.57,11.21356419]
[1734374668376,2.2757,219.64,219.57,2.98]
[1734374668572,2.2757,219.64,219.58,5.60662938]
[1734374668767,2.2758,219.63,219.59,4.90545644]
[1734374668964,2.2758,219.63,219.6,4.90545644]
[1734374669169,2.2758,219.63,219.57,2.98]
[1734374669366,2.2758,219.63,219.58,4.90692529]
[1734374669566,2.2758,219.63,219.59,4.90692529]
[1734374669878,2.2758,219.63,219.6,4.90692529]
[1734374670075,2.2754,219.67,219.61,4.90692529]
[1734374670276,2.2754,219.67,219.57,2.98]
[1734374670277,2.2754,219.67,219.64,8.40238914]
[1734374670478,2.2754,219.67,219.65,4.90351894]
[1734374670676,8.40238914,219.7,219.62,8.40238914]
[1734374670881,8.40238914,219.68,219.62,8.40238914]
[1734374671171,8.40238914,219.68,219.6,8.40238914]
[1734374671574,8.40238914,219.68,219.61,4.90591552]
[1734374671775,8.40238914,219.68,219.62,4.90591552]
[1734374671979,13.13356226,219.71,219.59,2.2761]
[1734374672277,13.13356226,219.71,219.6,8.23494285]
[1734374672475,2.2757,219.65,219.61,4.90483775]
[1734374672774,2.2757,219.65,219.62,4.90483775]
[1734374673077,2.2757,219.65,219.63,4.90483775]